[Event "Vienna Championship-C 2022"]
[Site "Vienna"]
[Date "2022.09.17"]
[Round "1.1"]
[White "Geyer, Guenter"]
[Black "Pavlov, Julian"]
[Result "1-0"]
[ECO "A03"]
[WhiteElo "1855"]
[BlackElo "1306"]
[Annotator "NA COMBH"]
[PlyCount "43"]
[EventDate "2022.09.17"]
[EventType "swiss"]
[EventCountry "AUT"]
[SourceTitle "playchess.com"]
[Source "ChessBase"]
[SourceQuality "1"]
[TimeControl "5400+30"]

1. f4 {[%emt 0:01:54]} d5 {[%emt 0:00:01]} 2. Nf3 {[%emt 0:00:05]} Nf6 {[%emt 0:00:02]} 3. e3 {[%emt 0:01:26]} e6 {[%emt 0:00:06]} 4. b3 {[%emt 0:00:15]} Be7 {[%emt 0:00:08]} 5. Bb2 {[%emt 0:00:08]} O-O {[%emt 0:00:08]} 6. Be2 {[%emt 0:01:24]} Ne4 {[%emt 0:00:47]} 7. O-O {[%emt 0:03:12]} Bf6 {[%emt 0:00:16]} 8. Ne5 {[%emt 0:01:31]} Nd7 {[%emt 0:00:46]} 9. d3 {[%emt 0:01:15]} Bxe5 {[%emt 0:00:53]} 10. fxe5 {[%emt 0:02:47]} Nec5 {[%emt 0:00:13]} 11. Ba3 {[%emt 0:05:04]} Re8 {[%emt 0:00:34]} 12. b4 {[%emt 0:05:45]} Na6 {[%emt 0:00:26]} 13. d4 {[%emt 0:01:58]} c6 {[%emt 0:01:01]} 14. Nc3 {[%emt 0:07:43]} b5 {[%emt 0:00:09]} 15. Bd3 {[%emt 0:05:01]} Qg5 {[%emt 0:00:32]} 16. Rf3 {[%emt 0:01:18]} Nb6 {[%emt 0:00:28]} 17. Rg3 {[%emt 0:01:07]} Qh4 {[%emt 0:01:28]} 18. Rh3 {[%emt 0:00:38]} Qg5 {[%emt 0:00:13]} 19. Bxh7+ {[%emt 0:00:27]} Kf8 {[%emt 0:00:08]} 20. Bc1 {[%emt 0:04:03]} g6 {[%emt 0:01:09]} 21. e4 {[%emt 0:00:42]} Qe7 {[%emt 0:00:55]} 22. Bh6# {[%emt 0:00:11]} 1-0

[Event "Vienna Championship-C 2022"]
[Site "Vienna"]
[Date "2022.09.17"]
[Round "1.2"]
[White "Johnson, Roland E S"]
[Black "Mair, Josef"]
[Result "1/2-1/2"]
[ECO "B01"]
[WhiteElo "1691"]
[BlackElo "1620"]
[Annotator "NA COMBH"]
[PlyCount "34"]
[EventDate "2022.09.17"]
[EventType "swiss"]
[EventCountry "AUT"]
[SourceTitle "playchess.com"]
[Source "ChessBase"]
[SourceQuality "1"]
[TimeControl "5400+30"]

1. e4 {[%emt 0:00:03]} d5 {[%emt 0:00:03]} 2. exd5 {[%emt 0:00:03]} Nf6 {[%emt 0:00:02]} 3. c4 {[%emt 1:31:54]} c6 {[%emt 1:31:55]} 4. dxc6 {[%emt 0:00:00]} Nxc6 {[%emt 0:00:00]} 5. Nf3 {[%emt 0:00:00]} e5 {[%emt 0:00:00]} 6. d3 {[%emt 0:00:00]} Bc5 {[%emt 0:00:00]} 7. Be2 {[%emt 0:00:00]} Bf5 {[%emt 0:00:00]} 8. a3 {[%emt 0:00:00]} O-O {[%emt 0:00:00]} 9. O-O {[%emt 0:00:00]} Re8 {[%emt 0:00:00]} 10. Nc3 {[%emt 0:00:00]} Qc7 {[%emt 0:00:00]} 11. Bg5 {[%emt 0:00:00]} Rad8 {[%emt 0:00:00]} 12. Nd5 {[%emt 0:00:00]} Qd6 {[%emt 0:00:00]} 13. Nh4 {[%emt 0:00:00]} Bg6 {[%emt 0:00:00]} 14. Nxg6 {[%emt 0:00:00]} hxg6 {[%emt 0:00:00]} 15. Qd2 {[%emt 0:00:00]} Rd7 {[%emt 0:00:00]} 16. Nxf6+ {[%emt 0:00:00]} gxf6 {[%emt 0:00:00]} 17. Be3 {[%emt 0:00:00]} Nd4 {[%emt 0:00:00]} 1/2-1/2

[Event "Vienna Championship-C 2022"]
[Site "Vienna"]
[Date "2022.09.17"]
[Round "1.3"]
[White "Eichhorn, Elisabeth"]
[Black "Gerold, Arnold"]
[Result "1/2-1/2"]
[ECO "D00"]
[WhiteElo "1306"]
[BlackElo "1708"]
[Annotator "NA COMBH"]
[PlyCount "61"]
[EventDate "2022.09.17"]
[EventType "swiss"]
[EventCountry "AUT"]
[SourceTitle "playchess.com"]
[Source "ChessBase"]
[SourceQuality "1"]
[TimeControl "5400+30"]

1. d4 {[%emt 0:00:02]} Nf6 {[%emt 0:00:14]} 2. Nc3 {[%emt 0:00:09]} d5 {[%emt 0:00:08]} 3. Bf4 {[%emt 0:00:20]} c6 {[%emt 0:01:44]} 4. Nf3 {[%emt 0:00:18]} Bg4 {[%emt 0:00:47]} 5. e3 {[%emt 0:00:50]} e6 {[%emt 0:00:44]} 6. Be2 {[%emt 0:00:32]} Bd6 {[%emt 0:02:58]} 7. Bg3 {[%emt 0:00:26]} Bxg3 {[%emt 0:05:00]} 8. hxg3 {[%emt 0:00:07]} Nbd7 {[%emt 0:00:56]} 9. Nb1 {[%emt 0:03:37]} Qb6 {[%emt 0:05:03]} 10. Qc1 {[%emt 0:00:43]} h6 {[%emt 0:02:19]} 11. Nbd2 {[%emt 0:00:49]} Qc7 {[%emt 0:02:28]} 12. Bd3 {[%emt 0:00:30]} O-O-O {[%emt 0:11:16]} 13. c3 {[%emt 0:02:16]} e5 {[%emt 0:01:06]} 14. dxe5 {[%emt 0:01:39]} Nxe5 {[%emt 0:00:44]} 15. Qc2 {[%emt 0:13:01]} Nxd3+ {[%emt 0:07:43]} 16. Qxd3 {[%emt 0:00:30]} Kb8 {[%emt 0:03:24]} 17. O-O-O {[%emt 0:00:37]} Rhe8 {[%emt 0:02:15]} 18. Rde1 {[%emt 0:05:59]} Ne4 {[%emt 0:04:14]} 19. Rhf1 {[%emt 0:03:13]} Qa5 {[%emt 0:01:48]} 20. a3 {[%emt 0:02:00]} Bf5 {[%emt 0:04:29]} 21. Qd4 {[%emt 0:17:30]} Nc5 {[%emt 0:08:40]} 22. Qf4+ {[%emt 0:03:55]} Ka8 {[%emt 0:06:17]} 23. Qxf5 {[%emt 0:01:54]} Qb5 {[%emt 0:00:39]} 24. Kc2 {[%emt 0:18:32]} g6 {[%emt 0:00:36]} 25. Qg4 {[%emt 0:00:57]} Qd3+ {[%emt 0:05:11]} 26. Kc1 {[%emt 0:02:23]} Re4 {[%emt 0:02:36]} 27. Qh3 {[%emt 0:09:12]} Qb5 {[%emt 0:06:32]} 28. Rd1 {[%emt 0:05:25]} Na4 {[%emt 0:03:27]} 29. b3 {[%emt 0:03:10]} Nxc3 {[%emt 0:01:13]} 30. Nxe4 {[%emt 0:01:51]} Qxb3 {[%emt 0:04:55]} 31. Nxc3 {[%emt 0:01:30]} 1/2-1/2

[Event "Vienna Championship-C 2022"]
[Site "Vienna"]
[Date "2022.09.17"]
[Round "1.5"]
[White "Unger, Alexander"]
[Black "Giefing, Josef"]
[Result "0-1"]
[ECO "B06"]
[WhiteElo "1456"]
[BlackElo "1771"]
[Annotator "NA COMBH"]
[PlyCount "120"]
[EventDate "2022.09.17"]
[EventType "swiss"]
[EventCountry "AUT"]
[SourceTitle "playchess.com"]
[Source "ChessBase"]
[SourceQuality "1"]
[TimeControl "5400+30"]

1. e4 {[%emt 0:00:04]} g6 {[%emt 0:00:16]} 2. d4 {[%emt 0:00:56]} Bg7 {[%emt 0:00:10]} 3. Nf3 {[%emt 0:00:48]} d6 {[%emt 0:00:19]} 4. Nc3 {[%emt 0:01:09]} Nc6 {[%emt 0:02:00]} 5. Bf4 {[%emt 0:02:37]} Bg4 {[%emt 0:05:29]} 6. Bb5 {[%emt 0:04:45]} Bd7 {[%emt 0:04:03]} 7. Qd2 {[%emt 0:07:02]} a6 {[%emt 0:00:28]} 8. Ba4 {[%emt 0:01:07]} Nf6 {[%emt 0:01:21]} 9. h3 {[%emt 0:03:48]} O-O {[%emt 0:00:38]} 10. O-O {[%emt 0:01:23]} b5 {[%emt 0:00:36]} 11. Bb3 {[%emt 0:00:35]} b4 {[%emt 0:00:18]} 12. Nd5 {[%emt 0:02:45]} Nxe4 {[%emt 0:00:42]} 13. Qe1 {[%emt 0:05:13]} Nf6 {[%emt 0:00:16]} 14. Nxf6+ {[%emt 0:08:06]} exf6 {[%emt 0:04:08]} 15. d5 {[%emt 0:01:07]} Ne5 {[%emt 0:02:03]} 16. Bxe5 {[%emt 0:02:35]} fxe5 {[%emt 0:00:13]} 17. Qxb4 {[%emt 0:00:17]} a5 {[%emt 0:00:22]} 18. Qd2 {[%emt 0:01:19]} Bb5 {[%emt 0:03:34]} 19. c4 {[%emt 0:01:08]} Bd7 {[%emt 0:01:30]} 20. Rfc1 {[%emt 0:08:34]} f5 {[%emt 0:02:38]} 21. c5 {[%emt 0:02:27]} Qf6 {[%emt 0:00:49]} 22. Rab1 {[%emt 0:06:15]} a4 {[%emt 0:02:00]} 23. Bd1 {[%emt 0:00:17]} e4 {[%emt 0:00:32]} 24. Nh2 {[%emt 0:01:18]} h5 {[%emt 0:07:14]} 25. cxd6 {[%emt 0:03:03]} cxd6 {[%emt 0:08:44]} 26. Rc7 {[%emt 0:01:36]} Rf7 {[%emt 0:05:15]} 27. b4 {[%emt 0:09:00]} Bb5 {[%emt 0:09:38]} 28. Rxf7 {[%emt 0:01:27]} Qxf7 {[%emt 0:04:03]} 29. Rc1 {[%emt 0:04:23]} Bd3 {[%emt 0:02:25]} 30. Nf1 {[%emt 0:02:05]} Qxd5 {[%emt 0:02:33]} 31. Ne3 {[%emt 0:02:43]} Qb5 {[%emt 0:03:15]} 32. Bc2 {[%emt 0:01:51]} Rc8 {[%emt 0:06:51]} 33. Bb3+ {[%emt 0:00:23]} axb3 {[%emt 0:01:03]} 34. Rxc8+ {[%emt 0:00:09]} Kh7 {[%emt 0:00:24]} 35. axb3 {[%emt 0:00:57]} Qa6 {[%emt 0:00:18]} 36. Qc1 {[%emt 0:03:38]} Qb5 {[%emt 0:02:06]} 37. Qd2 {[%emt 0:02:00]} f4 {[%emt 0:00:51]} 38. Nc2 {[%emt 0:01:55]} Qd7 {[%emt 0:00:17]} 39. Ra8 {[%emt 0:00:19]} f3 {[%emt 0:00:26]} 40. Ne1 {[%emt 0:00:56]} fxg2 {[%emt 0:00:09]} 41. Kxg2 {[%emt 0:00:43]} Qb7 {[%emt 0:00:23]} 42. Kg1 {[%emt 0:01:02]} Qxa8 {[%emt 0:00:03]} 43. Nxd3 {[%emt 0:00:18]} exd3 {[%emt 0:00:03]} 44. Qxd3 {[%emt 0:00:25]} Qa1+ {[%emt 0:00:26]} 45. Kg2 {[%emt 0:00:08]} Qd4 {[%emt 0:00:05]} 46. Qxd4 {[%emt 0:02:16]} Bxd4 {[%emt 0:00:01]} 47. Kf3 {[%emt 0:00:16]} Kg7 {[%emt 0:00:02]} 48. Ke4 {[%emt 0:01:26]} Bxf2 {[%emt 0:01:39]} 49. Kd5 {[%emt 0:00:08]} Kf6 {[%emt 0:00:10]} 50. b5 {[%emt 0:04:02]} g5 {[%emt 0:00:03]} 51. b4 {[%emt 0:01:15]} Kf5 {[%emt 0:00:09]} 52. Kc6 {[%emt 0:01:49]} g4 {[%emt 0:00:09]} 53. hxg4+ {[%emt 0:00:06]} hxg4 {[%emt 0:00:02]} 54. b6 {[%emt 0:00:25]} Bxb6 {[%emt 0:00:37]} 55. Kxb6 {[%emt 0:00:02]} g3 {[%emt 0:00:00]} 56. Kc6 {[%emt 0:00:00]} g2 {[%emt 0:00:00]} 57. Kxd6 {[%emt 0:00:00]} g1=Q {[%emt 0:00:06]} 58. Kc6 {[%emt 0:00:00]} Qa7 {[%emt 0:00:24]} 59. b5 {[%emt 0:00:00]} Ke6 {[%emt 0:01:12]} 60. b6 {[%emt 0:00:00]} Qb8 {[%emt 0:00:16]} 0-1

[Event "Vienna Championship-C 2022"]
[Site "Vienna"]
[Date "2022.09.17"]
[Round "1.6"]
[White "Brunner, Felix"]
[Black "Niesswohl, Werner"]
[Result "1-0"]
[ECO "C54"]
[WhiteElo "1541"]
[BlackElo "1473"]
[Annotator "NA COMBH"]
[PlyCount "57"]
[EventDate "2022.09.17"]
[EventType "swiss"]
[EventCountry "AUT"]
[SourceTitle "playchess.com"]
[Source "ChessBase"]
[SourceQuality "1"]
[TimeControl "5400+30"]

1. e4 {[%emt 0:00:04]} e5 {[%emt 0:00:16]} 2. Nf3 {[%emt 0:00:09]} Nc6 {[%emt 0:00:22]} 3. Bc4 {[%emt 0:00:05]} Bc5 {[%emt 0:00:30]} 4. c3 {[%emt 0:00:04]} Nf6 {[%emt 0:00:30]} 5. d3 {[%emt 0:00:04]} a6 {[%emt 0:00:45]} 6. O-O {[%emt 0:00:19]} d6 {[%emt 0:00:54]} 7. a4 {[%emt 0:01:09]} O-O {[%emt 0:00:37]} 8. Re1 {[%emt 0:00:05]} Bd7 {[%emt 0:02:02]} 9. h3 {[%emt 0:00:26]} b5 {[%emt 0:01:42]} 10. axb5 {[%emt 0:02:37]} axb5 {[%emt 0:00:18]} 11. Rxa8 {[%emt 0:00:08]} Qxa8 {[%emt 0:00:30]} 12. Bxb5 {[%emt 0:00:25]} Qb7 {[%emt 0:02:49]} 13. Bc4 {[%emt 0:02:47]} Qb6 {[%emt 0:01:21]} 14. Re2 {[%emt 0:00:49]} h6 {[%emt 0:03:16]} 15. Nbd2 {[%emt 0:01:48]} Nh5 {[%emt 0:01:28]} 16. Nf1 {[%emt 0:02:42]} Nf4 {[%emt 0:01:13]} 17. Bxf4 {[%emt 0:00:30]} exf4 {[%emt 0:00:30]} 18. b4 {[%emt 0:00:30]} Bxf2+ {[%emt 0:06:18]} 19. Rxf2 {[%emt 0:01:55]} Ne5 {[%emt 0:00:32]} 20. Nxe5 {[%emt 0:01:49]} dxe5 {[%emt 0:00:31]} 21. Qh5 {[%emt 0:04:43]} Qf6 {[%emt 0:04:27]} 22. Ne3 {[%emt 0:07:12]} Qb6 {[%emt 0:02:44]} 23. Nd5 {[%emt 0:00:53]} Qd6 {[%emt 0:01:02]} 24. b5 {[%emt 0:02:02]} Kh7 {[%emt 0:02:41]} 25. Ra2 {[%emt 0:03:57]} Bxb5 {[%emt 0:01:17]} 26. Bxb5 {[%emt 0:01:25]} Qc5+ {[%emt 0:00:28]} 27. Kh2 {[%emt 0:00:32]} Qxb5 {[%emt 0:00:27]} 28. Qxe5 {[%emt 0:00:27]} f3 {[%emt 0:01:53]} 29. Nf6+ {[%emt 0:01:33]} 1-0

[Event "Vienna Championship-C 2022"]
[Site "Vienna"]
[Date "2022.09.17"]
[Round "1.7"]
[White "Zikic, Goran"]
[Black "Brueggeboes, Anton"]
[Result "0-1"]
[ECO "B33"]
[WhiteElo "1340"]
[BlackElo "1506"]
[Annotator "NA COMBH"]
[PlyCount "62"]
[EventDate "2022.09.17"]
[EventType "swiss"]
[EventCountry "AUT"]
[SourceTitle "playchess.com"]
[Source "ChessBase"]
[SourceQuality "1"]
[TimeControl "5400+30"]

1. e4 c5 2. Nf3 Nc6 3. d4 cxd4 4. Nxd4 e5 5. Nxc6 bxc6 6. Nc3 Nf6 7. Bg5 Be7 8. Bxf6 Bxf6 9. Bc4 O-O 10. O-O Qc7 11. Re1 d6 12. Qd2 Be6 13. Bxe6 fxe6 14. Qe3 d5 15. Qh3 Qf7 16. Na4 Rae8 17. Nc5 Bd8 18. Nd3 Bc7 19. Re3 Qe7 20. Qh5 g6 21. Rg3 dxe4 22. Nxe5 Qg7 23. Nxg6 Bxg3 24. Nxf8 Bxf2+ 25. Kxf2 Rxf8+ 26. Ke2 Qxg2+ 27. Ke3 Rf3+ 28. Kd4 Qd2+ 29. Kc4 Qxc2+ 30. Kb4 Qxb2+ 31. Kc5 Qb5+ 0-1

[Event "Vienna Championship-C 2022"]
[Site "Vienna"]
[Date "2022.09.17"]
[Round "1.9"]
[White "Gockner, Hans"]
[Black "Lappe, Manfred"]
[Result "0-1"]
[ECO "C21"]
[WhiteElo "1592"]
[BlackElo "1692"]
[Annotator "NA COMBH"]
[PlyCount "68"]
[EventDate "2022.09.17"]
[EventType "swiss"]
[EventCountry "AUT"]
[SourceTitle "playchess.com"]
[Source "ChessBase"]
[SourceQuality "1"]
[TimeControl "5400+30"]

1. e4 {[%emt 0:00:13]} e5 {[%emt 0:00:12]} 2. d4 {[%emt 0:00:38]} exd4 {[%emt 0:01:37]} 3. c3 {[%emt 0:00:35]} d5 {[%emt 0:12:29]} 4. cxd4 {[%emt 0:02:26]} dxe4 {[%emt 0:00:49]} 5. Bc4 {[%emt 0:01:50]} Nc6 {[%emt 0:03:10]} 6. Ne2 {[%emt 0:01:43]} Bd6 {[%emt 0:02:13]} 7. Qb3 {[%emt 0:02:05]} Qf6 {[%emt 0:00:57]} 8. Be3 {[%emt 0:06:11]} Nge7 {[%emt 0:02:49]} 9. Nbc3 {[%emt 0:02:50]} Qg6 {[%emt 0:01:16]} 10. Ng3 {[%emt 0:05:24]} Bxg3 {[%emt 0:02:03]} 11. fxg3 {[%emt 0:01:43]} O-O {[%emt 0:01:34]} 12. O-O {[%emt 0:05:25]} Na5 {[%emt 0:03:44]} 13. Qb5 {[%emt 0:01:53]} Nxc4 {[%emt 0:00:30]} 14. Qxc4 {[%emt 0:00:33]} c6 {[%emt 0:01:32]} 15. Rf4 {[%emt 0:02:50]} Be6 {[%emt 0:03:57]} 16. Qe2 {[%emt 0:01:53]} Nd5 {[%emt 0:00:55]} 17. Nxd5 {[%emt 0:00:06]} cxd5 {[%emt 0:01:19]} 18. g4 {[%emt 0:03:29]} f5 {[%emt 0:00:58]} 19. g5 {[%emt 0:08:41]} Rac8 {[%emt 0:01:41]} 20. h4 {[%emt 0:03:29]} Rc7 {[%emt 0:03:52]} 21. Raf1 {[%emt 0:01:13]} Rfc8 {[%emt 0:04:01]} 22. Qf2 {[%emt 0:04:57]} Rc2 {[%emt 0:01:36]} 23. Qg3 {[%emt 0:00:11]} Rxb2 {[%emt 0:02:44]} 24. h5 {[%emt 0:01:24]} Qxh5 {[%emt 0:00:51]} 25. Rh4 {[%emt 0:00:13]} Qg6 {[%emt 0:00:37]} 26. Bf4 {[%emt 0:02:37]} Rcc2 {[%emt 0:02:35]} 27. Bd2 {[%emt 0:14:12]} Qf7 {[%emt 0:01:45]} 28. Qh2 {[%emt 0:06:07]} Rxd2 {[%emt 0:01:11]} 29. Qb8+ {[%emt 0:03:17]} Qf8 {[%emt 0:00:09]} 30. Qxf8+ {[%emt 0:01:33]} Kxf8 {[%emt 0:00:11]} 31. Rh2 {[%emt 0:01:17]} Kg8 {[%emt 0:01:32]} 32. Rc1 {[%emt 0:00:25]} Rxa2 {[%emt 0:01:13]} 33. Kf1 {[%emt 0:02:16]} f4 {[%emt 0:00:39]} 34. g6 {[%emt 0:02:02]} hxg6 {[%emt 0:00:25]} 0-1

[Event "Vienna Championship-C 2022"]
[Site "Vienna"]
[Date "2022.09.17"]
[Round "1.10"]
[White "Schreib, Christian"]
[Black "Aichinger, Johannes"]
[Result "1-0"]
[ECO "C50"]
[WhiteElo "1589"]
[BlackElo "1169"]
[Annotator "NA COMBH"]
[PlyCount "63"]
[EventDate "2022.09.17"]
[EventType "swiss"]
[EventCountry "AUT"]
[SourceTitle "playchess.com"]
[Source "ChessBase"]
[SourceQuality "1"]
[TimeControl "5400+30"]

1. e4 {[%emt 0:00:09]} e5 {[%emt 0:00:01]} 2. Nf3 {[%emt 0:00:25]} Nc6 {[%emt 0:00:12]} 3. Bc4 {[%emt 0:00:24]} Bc5 {[%emt 0:00:04]} 4. d3 {[%emt 0:00:22]} d6 {[%emt 0:00:06]} 5. Be3 {[%emt 0:00:48]} Bb6 {[%emt 0:00:13]} 6. h3 {[%emt 0:01:10]} h6 {[%emt 0:00:08]} 7. a3 {[%emt 0:02:42]} Nf6 {[%emt 0:00:16]} 8. Bxb6 {[%emt 0:01:35]} axb6 {[%emt 0:00:17]} 9. Nc3 {[%emt 0:01:45]} O-O {[%emt 0:00:08]} 10. Qd2 {[%emt 0:04:39]} Be6 {[%emt 0:00:09]} 11. Nd5 {[%emt 0:01:48]} Bxd5 {[%emt 0:00:18]} 12. Bxd5 {[%emt 0:00:39]} Nxd5 {[%emt 0:00:07]} 13. exd5 {[%emt 0:00:12]} Ne7 {[%emt 0:00:05]} 14. c4 {[%emt 0:00:21]} b5 {[%emt 0:00:19]} 15. O-O {[%emt 0:02:02]} c6 {[%emt 0:00:05]} 16. dxc6 {[%emt 0:01:46]} bxc4 {[%emt 0:00:29]} 17. cxb7 {[%emt 0:00:18]} Rb8 {[%emt 0:00:08]} 18. dxc4 {[%emt 0:02:47]} Rxb7 {[%emt 0:00:11]} 19. Rfd1 {[%emt 0:01:31]} f6 {[%emt 0:00:34]} 20. b4 {[%emt 0:01:05]} d5 {[%emt 0:00:32]} 21. cxd5 {[%emt 0:01:41]} Rd7 {[%emt 0:00:09]} 22. d6 {[%emt 0:00:50]} Nf5 {[%emt 0:00:18]} 23. Qd5+ {[%emt 0:02:55]} Kh8 {[%emt 0:00:11]} 24. Qe4 {[%emt 0:08:22]} Nxd6 {[%emt 0:00:19]} 25. Qg6 {[%emt 0:01:34]} Qe7 {[%emt 0:00:48]} 26. Nh4 {[%emt 0:01:50]} f5 {[%emt 0:00:31]} 27. Qg3 {[%emt 0:00:38]} Ne4 {[%emt 0:00:38]} 28. Ng6+ {[%emt 0:04:26]} Kh7 {[%emt 0:00:30]} 29. Rxd7 {[%emt 0:00:54]} Nxg3 {[%emt 0:00:48]} 30. Rxe7 {[%emt 0:00:21]} Ne2+ {[%emt 0:00:12]} 31. Kf1 {[%emt 0:00:21]} Kxg6 {[%emt 0:00:37]} 32. Kxe2 {[%emt 0:00:10]} 1-0

[Event "Vienna Championship-C 2022"]
[Site "Vienna"]
[Date "2022.09.17"]
[Round "1.11"]
[White "Twyble, Michael S"]
[Black "Roehrbacher, Franz"]
[Result "0-1"]
[ECO "A23"]
[WhiteElo "2245"]
[BlackElo "1673"]
[Annotator "TA"]
[PlyCount "72"]
[EventDate "2022.09.17"]
[EventType "swiss"]
[EventCountry "AUT"]
[SourceTitle "playchess.com"]
[Source "ChessBase"]
[SourceQuality "1"]
[TimeControl "5400+30"]

{[%evp 9,72,-23,-11,-29,-25,-20,-12,-54,-52,-46,-50,-49,-45,-102,-51,-112,-116,-150,-151,-382,-391,-467,-467,-447,-454,-461,-437,-427,-414,-439,-422,-514,-499,-513,-494,-621,-612,-600,-554,-545,-536,-620,-592,-890,-883,-827,-856,-951,-1026,-968,-973,-962,-904,-1039,-986,-29975,-29976,-29995,-29988,-29988,-29982,-29981,-29982,-29967,-3646]} 1. c4 {[%emt 0:00:08]} e5 {[%emt 0:00:34]} 2. Nc3 {[%emt 0:00:11]} Nf6 {[%emt 0:00:29]} 3. g3 {[%emt 0:00:14]} c6 {[%emt 0:00:21]} 4. Bg2 {[%emt 0:01:22]} Bb4 {[%emt 0:02:08]} 5. e3 {[%emt 0:01:37]} Bxc3 {[%emt 0:02:05]} 6. bxc3 {[%emt 0:00:12] A23: English Opening: 1...e5 2 Nc3 Nf6 3 g3 c6.} O-O {[%emt 0:00:26]} 7. Ba3 {[%emt 0:00:41] [#]} Re8 $146 {[%emt 0:00:31]} ({Predecessor:} 7... d6 8. Ne2 Re8 9. O-O e4 10. Nd4 c5 11. Ne2 Nc6 12. d4 b6 13. Nf4 Na5 14. Qa4 {0-1 (26) Harneit Sequeira,C-Hoenl,F freechess.de 2021}) 8. Ne2 {[%emt 0:03:10] The position is equal.} d5 {[%emt 0:00:18]} 9. cxd5 {[%emt 0:01:13]} cxd5 {[%emt 0:01:15]} 10. d4 {[%emt 0:01:16]} e4 {[%emt 0:02:18]} 11. Nf4 {[%emt 0:02:19]} (11. O-O $15) 11... Nc6 {[%emt 0:04:29]} (11... Bg4 $17 12. Qa4 (12. Qb3 Nc6 $15) 12... Nc6) 12. O-O {[%emt 0:03:03]} (12. h3 $15) 12... Na5 {[%emt 0:00:15]} 13. Bb4 {[%emt 0:04:16] [#]} Nc4 $1 {[%emt 0:00:10] And now ...a5 would win. Pair of Knights!} 14. Qc2 $2 {[%emt 0:03:14]} (14. a4 $17) 14... a5 $19 {[%emt 0:01:05]} 15. Qa4 {[%emt 0:10:13]} Bd7 {[%emt 0:00:51]} ({Worse is} 15... axb4 16. Qxa8 bxc3 17. Ne2 $11) 16. Qc2 {[%emt 0:02:14]} axb4 {[%emt 0:00:42]} 17. cxb4 {[%emt 0:03:28]} Ba4 {[%emt 0:03:26]} 18. Qe2 {[%emt 0:01:09]} Bc6 {[%emt 0:04:08]} 19. Rfc1 {[%emt 0:04:13]} b5 {[%emt 0:00:44]} 20. h4 {[%emt 0:02:32]} Bd7 {[%emt 0:00:57]} 21. Bf1 {[%emt 0:02:34]} h6 {[%emt 0:08:18]} 22. Qd1 {[%emt 0:02:08]} Bg4 {[%emt 0:02:01]} 23. Be2 {[%emt 0:00:42]} Bxe2 {[%emt 0:00:35]} 24. Qxe2 {[%emt 0:00:11]} Qd6 {[%emt 0:02:55]} 25. Rab1 {[%emt 0:50:40]} Ra4 {[%emt 0:01:14]} 26. Nh5 {[%emt 0:00:00]} Nxh5 {[%emt 0:02:14]} 27. Qxh5 {[%emt 0:00:00]} Rxa2 {[%emt 0:00:37]} 28. Qg4 {[%emt 0:00:00]} Qf6 {[%emt 0:03:07]} 29. Qf4 {[%emt 0:00:00]} Qxf4 {[%emt 0:04:32]} 30. gxf4 {[%emt 0:00:00]} h5 {[%emt 0:01:03]} 31. Rd1 {[%emt 0:00:00]} Re6 {[%emt 0:00:39] [#] Threatens to win with ...Rg6+.} 32. Kf1 {[%emt 0:00:00]} Nd2+ {[%emt 0:01:33] Black mates.} 33. Ke1 {[%emt 0:00:00]} Nxb1 {[%emt 0:00:19]} 34. Rxb1 {[%emt 0:00:00]} Rg6 {[%emt 0:00:07][%cal Rg6g1]} 35. Kf1 {[%emt 0:00:00]} Rga6 {[%emt 0:00:29]} 36. Kg2 {[%emt 0:00:00]} Rc2 {[%emt 0:00:15] White got outplayed after the opening.  Weighted Error Value: White=0.66/Black=0.09 (flawless)} (36... Rc6 $142 37. Rf1 Rb2 38. Kg3 Rxb4 39. f5 Rf6 40. Kf4 g6 41. Ke5 Rxf5+ 42. Kd6 Rb2 43. Rh1 Rbxf2 44. Rb1 R2f3 45. Rb3 Rh3 46. Ke7 Rxh4 47. Rb1 Rh2 48. Rg1 h4 49. Kd6 h3 50. Kc6 Re2 51. Kc5 h2 52. Rh1 Rh5 53. Kd6 Rxe3 54. Ke7 Rg3 55. Rc1 h1=Q 56. Rc7 e3 57. Kd6 e2 58. Rc8+ Kg7 59. Kc7 Rc3+ 60. Kb7 Rxc8 61. Kxc8 e1=Q 62. Kb7 Qe7+ 63. Kb6 Qa1 64. Kxb5 Qb1+ 65. Kc6 Qbb7#) 0-1

[Event "Vienna Championship-C 2022"]
[Site "Vienna"]
[Date "2022.09.17"]
[Round "1.13"]
[White "Nicolussi, Hieronymus"]
[Black "Gaspar, Zdravko"]
[Result "1-0"]
[ECO "D00"]
[WhiteElo "1239"]
[BlackElo "1538"]
[Annotator "NA COMBH"]
[PlyCount "69"]
[EventDate "2022.09.17"]
[EventType "swiss"]
[EventCountry "AUT"]
[SourceTitle "playchess.com"]
[Source "ChessBase"]
[SourceQuality "1"]
[TimeControl "5400+30"]

1. d4 {[%emt 0:00:02]} d5 {[%emt 0:00:12]} 2. e3 {[%emt 0:00:03]} c6 {[%emt 0:00:17]} 3. Bd3 {[%emt 0:00:10]} Nf6 {[%emt 0:00:19]} 4. Nd2 {[%emt 0:00:14]} Bg4 {[%emt 1:31:42]} 5. f3 {[%emt 1:32:31]} Bh5 {[%emt 0:00:00]} 6. h3 {[%emt 0:00:00]} Nbd7 {[%emt 0:00:00]} 7. g4 {[%emt 0:00:00]} Bg6 {[%emt 0:00:00]} 8. f4 {[%emt 0:00:00]} Bxd3 {[%emt 0:00:00]} 9. cxd3 {[%emt 0:02:00]} Qc7 {[%emt 0:00:00]} 10. Ngf3 {[%emt 0:00:00]} e6 {[%emt 0:00:00]} 11. O-O {[%emt 0:00:00]} O-O-O {[%emt 0:03:30]} 12. Ne5 {[%emt 0:01:30]} Nb6 {[%emt 0:00:00]} 13. a4 {[%emt 0:00:00]} Ng8 {[%emt 0:00:00]} 14. a5 {[%emt 0:00:00]} Na8 {[%emt 0:00:00]} 15. Nb3 {[%emt 0:00:00]} a6 {[%emt 0:00:00]} 16. Nc5 {[%emt 0:00:00]} Bxc5 {[%emt 0:00:00]} 17. dxc5 {[%emt 0:00:00]} f6 {[%emt 0:00:00]} 18. Nf3 {[%emt 0:00:00]} e5 {[%emt 0:00:00]} 19. b4 {[%emt 0:00:00]} e4 {[%emt 0:00:00]} 20. dxe4 {[%emt 0:00:00]} h5 {[%emt 0:00:00]} 21. exd5 {[%emt 0:00:00]} Rxd5 {[%emt 0:05:00]} 22. Nd4 {[%emt 0:05:00]} g5 {[%emt 0:00:00]} 23. Kg2 {[%emt 0:00:00]} Ne7 {[%emt 0:00:00]} 24. e4 {[%emt 0:00:00]} Rd7 {[%emt 0:00:00]} 25. fxg5 {[%emt 0:00:00]} hxg4 {[%emt 0:00:00]} 26. Bf4 {[%emt 0:00:00]} gxh3+ {[%emt 0:02:30]} 27. Kh2 {[%emt 0:02:30]} Qd8 {[%emt 0:00:00]} 28. Qg4 {[%emt 0:00:00]} fxg5 {[%emt 0:00:00]} 29. Bd6 {[%emt 0:00:00]} Nc7 {[%emt 0:00:00]} 30. Ra3 {[%emt 0:00:00]} Kb8 {[%emt 0:00:00]} 31. Rxh3 {[%emt 0:00:00]} Rxh3+ {[%emt 0:02:30]} 32. Qxh3 {[%emt 0:02:30]} Ng6 {[%emt 0:00:00]} 33. Ne6 {[%emt 0:00:00]} Nf4 {[%emt 0:00:00]} 34. Bxc7+ {[%emt 0:00:00]} Rxc7 {[%emt 0:00:00]} 35. Nxd8 {[%emt 0:00:00]} 1-0